{"text_format":"3","workbook":"xlsx","n_sheets":3,"sheets":["INÍCIO","PLANO DE ORÇAMENTO DE MARKETING","TABELA DE CATEGORIAS"],"not_rendered":{"charts":1,"defined_names":4,"pivot_tables":1},"read":"whole","date_system":"1900"}

{"sheet":"INÍCIO","index":0,"n_rows":7,"n_cols":2,"rows_kept":7}
[null,"Sobre o modelo"]
[null,"Crie um Plano de Orçamento de Marketing e um Tabela de Categorias nesta pasta de trabalho."]
[null,"Insira categorias, quantidades e custos na tabela na planilha Plano de Orçamento de Marketing. Os custos do evento e o total geral de marketing estimado são calculados automaticamente."]
[null,"O gráfico de colunas agrupadas é atualizado automaticamente na planilha de tabela de categorias."]
[null,"Observação: "]
[null,"Instruções adicionais foram fornecidas na coluna A nas planilhas PLANO DE ORÇAMENTO DE MARKETING e TABELA DE CATEGORIAS. Este texto foi ocultado intencionalmente. Para removê-lo, selecione a coluna A e selecione Excluir. Para reexibir o texto, selecione a coluna A e altere a cor da fonte."]
[null,"Para saber mais sobre tabela, pressione Shift e F10 dentro de uma tabela, selecione a opção TABELA e, em seguida, selecione TEXTO ALTERNATIVO. Para tabelas dinâmicas, pressione Shift e F10 dentro de uma tabela, selecione as opções da tabela dinâmica e, em seguida, selecione a guia TEXTO ALT."]

{"sheet":"PLANO DE ORÇAMENTO DE MARKETING","index":1,"n_rows":61,"n_cols":7,"rows_kept":61,"merged":[[2,4,7,6],[3,1,3,2],[4,1,4,2],[5,1,5,2],[6,1,6,2]]}
["Crie um plano de orçamento de marketing nesta planilha. Instruções úteis sobre como usar esta planilha estão nas células desta coluna. Pressione Seta para baixo para começar."]
["O título desta pasta de trabalho está na célula à direita.","PLANO DE ORÇAMENTO DE MARKETING"]
["A segmentação de dados para filtrar a tabela de dados por Categoria Principal está na célula E3.",{"$nulls":3},"A segmentação de dados para filtrar a tabela de dados por Categoria Principal está nesta célula."]
["Digite o número de participantes na célula D4.","NÚMERO DE PARTICIPANTES",null,50]
["Os custos do evento são calculados automaticamente na célula D5.","CUSTOS DO EVENTO",null,{"$f":"SUMIF(Dados[Categoria Principal],\"Evento\",Dados[Subtotal estimado])","v":{"v":2500,"d":"R$ 2,500.00"}}]
["O preço do evento por pessoa é calculado automaticamente na célula D6.","PREÇO DO EVENTO por PESSOA",null,{"$f":"EventCosts/NumberOfAttendees","v":{"v":50,"d":"R$ 50.00"}}]
["O total geral de marketing estimado é calculado automaticamente na célula D7.","TOTAL GERAL ESTIMADO PARA MARKETING",null,{"$f":"SUMIF(Dados[Categoria Principal],\"<>Evento\",Dados[Subtotal estimado])","v":{"v":45743,"d":"R$ 45,743.00"}}]
["O subtotal é calculado automaticamente na célula D8. A próxima instrução está na célula A10.","SUBTOTAL",null,{"$f":"SUBTOTAL(109,Dados[Subtotal estimado])","v":{"v":48243,"d":"R$ 48,243.00"}}]
[]
["Insira os detalhes na tabela Dados, começando pela célula à direita.","Categoria Principal","Categoria Secundária","Quantidade estimada","Custo estimado por unidade","Subtotal estimado","Observações"]
[null,"Pesquisa","Taxas da empresa de pesquisa",2,{"v":2300,"d":"R$ 2,300.00"},{"$f":"Dados[[#This Row],[Quantidade estimada]]*Dados[[#This Row],[Custo estimado por unidade]]","v":{"v":4600,"d":"R$ 4,600.00"}}]
[null,"Pesquisa","Pesquisa na Web",1,{"v":1100,"d":"R$ 1,100.00"},{"$f":"Dados[[#This Row],[Quantidade estimada]]*Dados[[#This Row],[Custo estimado por unidade]]","v":{"v":1100,"d":"R$ 1,100.00"}}]
[null,"Pesquisa","Pesquisa independente",3,{"v":300,"d":"R$ 300.00"},{"$f":"Dados[[#This Row],[Quantidade estimada]]*Dados[[#This Row],[Custo estimado por unidade]]","v":{"v":900,"d":"R$ 900.00"}}]
[null,"Pesquisa","Outras pesquisas",2,{"v":250,"d":"R$ 250.00"},{"$f":"Dados[[#This Row],[Quantidade estimada]]*Dados[[#This Row],[Custo estimado por unidade]]","v":{"v":500,"d":"R$ 500.00"}}]
[null,"Comunicações","Folhetos promocionais",{"v":5000,"d":"5,000"},{"v":0.15,"d":"R$ 0.15"},{"$f":"Dados[[#This Row],[Quantidade estimada]]*Dados[[#This Row],[Custo estimado por unidade]]","v":{"v":750,"d":"R$ 750.00"}}]
[null,"Comunicações","Televisão",5,{"v":4000,"d":"R$ 4,000.00"},{"$f":"Dados[[#This Row],[Quantidade estimada]]*Dados[[#This Row],[Custo estimado por unidade]]","v":{"v":20000,"d":"R$ 20,000.00"}}]
[null,"Comunicações","Rádio",13,{"v":350,"d":"R$ 350.00"},{"$f":"Dados[[#This Row],[Quantidade estimada]]*Dados[[#This Row],[Custo estimado por unidade]]","v":{"v":4550,"d":"R$ 4,550.00"}}]
[null,"Comunicações","Web",1,{"v":350,"d":"R$ 350.00"},{"$f":"Dados[[#This Row],[Quantidade estimada]]*Dados[[#This Row],[Custo estimado por unidade]]","v":{"v":350,"d":"R$ 350.00"}}]
[null,"Rede","Rede",null,null,{"$f":"Dados[[#This Row],[Quantidade estimada]]*Dados[[#This Row],[Custo estimado por unidade]]","v":{"v":0,"d":"R$ 0.00"}}]
[null,"Rede","Associações",3,{"v":50,"d":"R$ 50.00"},{"$f":"Dados[[#This Row],[Quantidade estimada]]*Dados[[#This Row],[Custo estimado por unidade]]","v":{"v":150,"d":"R$ 150.00"}}]
[null,"Rede","Afiliações",2,{"v":20,"d":"R$ 20.00"},{"$f":"Dados[[#This Row],[Quantidade estimada]]*Dados[[#This Row],[Custo estimado por unidade]]","v":{"v":40,"d":"R$ 40.00"}}]
[null,"Rede","Assinaturas",2,{"v":32,"d":"R$ 32.00"},{"$f":"Dados[[#This Row],[Quantidade estimada]]*Dados[[#This Row],[Custo estimado por unidade]]","v":{"v":64,"d":"R$ 64.00"}}]
[null,"Evento","Número de participantes",50,null,{"$f":"Dados[[#This Row],[Quantidade estimada]]*Dados[[#This Row],[Custo estimado por unidade]]","v":{"v":0,"d":"R$ 0.00"}}]
[null,"Evento","Refeição (café da manhã, almoço ou jantar)",null,null,{"$f":"Dados[[#This Row],[Quantidade estimada]]*Dados[[#This Row],[Custo estimado por unidade]]","v":{"v":0,"d":"R$ 0.00"}}]
[null,"Evento","Alimentação",null,{"v":23,"d":"R$ 23.00"},{"$f":"Dados[[#This Row],[Quantidade estimada]]*Dados[[#This Row],[Custo estimado por unidade]]","v":{"v":0,"d":"R$ 0.00"}}]
[null,"Evento","Impostos (10%)",null,{"v":2.3000000000000003,"d":"R$ 2.30"},{"$f":"Dados[[#This Row],[Quantidade estimada]]*Dados[[#This Row],[Custo estimado por unidade]]","v":{"v":0,"d":"R$ 0.00"}}]
[null,"Evento","Taxa de serviço para comida e bebida (20%)",null,{"v":5.0600000000000005,"d":"R$ 5.06"},{"$f":"Dados[[#This Row],[Quantidade estimada]]*Dados[[#This Row],[Custo estimado por unidade]]","v":{"v":0,"d":"R$ 0.00"}}]
[null,"Evento","Serviço de manobrista",1,{"v":300,"d":"R$ 300.00"},{"$f":"Dados[[#This Row],[Quantidade estimada]]*Dados[[#This Row],[Custo estimado por unidade]]","v":{"v":300,"d":"R$ 300.00"}}]
[null,"Evento","Entretenimento #1",1,{"v":800,"d":"R$ 800.00"},{"$f":"Dados[[#This Row],[Quantidade estimada]]*Dados[[#This Row],[Custo estimado por unidade]]","v":{"v":800,"d":"R$ 800.00"}}]
[null,"Evento","Entretenimento #2",1,{"v":1200,"d":"R$ 1,200.00"},{"$f":"Dados[[#This Row],[Quantidade estimada]]*Dados[[#This Row],[Custo estimado por unidade]]","v":{"v":1200,"d":"R$ 1,200.00"}}]
[null,"Evento","Outros serviços",1,{"v":200,"d":"R$ 200.00"},{"$f":"Dados[[#This Row],[Quantidade estimada]]*Dados[[#This Row],[Custo estimado por unidade]]","v":{"v":200,"d":"R$ 200.00"}}]
[null,"Serviços Visuais/Áudio","Sistema básico de som e pódio",1,{"v":0,"d":"R$ 0.00"},{"$f":"Dados[[#This Row],[Quantidade estimada]]*Dados[[#This Row],[Custo estimado por unidade]]","v":{"v":0,"d":"R$ 0.00"}},"Fornecido pelo local (geralmente)"]
[null,"Serviços Visuais/Áudio","Tela",1,{"v":0,"d":"R$ 0.00"},{"$f":"Dados[[#This Row],[Quantidade estimada]]*Dados[[#This Row],[Custo estimado por unidade]]","v":{"v":0,"d":"R$ 0.00"}},"Fornecido por local (geralmente)"]
[null,"Serviços Visuais/Áudio","Aluguel de projetor de vídeo/dados XGA",1,{"v":45,"d":"R$ 45.00"},{"$f":"Dados[[#This Row],[Quantidade estimada]]*Dados[[#This Row],[Custo estimado por unidade]]","v":{"v":45,"d":"R$ 45.00"}}]
[null,"Serviços Visuais/Áudio","Mouse sem fio",1,{"v":12,"d":"R$ 12.00"},{"$f":"Dados[[#This Row],[Quantidade estimada]]*Dados[[#This Row],[Custo estimado por unidade]]","v":{"v":12,"d":"R$ 12.00"}}]
[null,"Serviços Visuais/Áudio","Tomada múltipla",1,{"v":0,"d":"R$ 0.00"},{"$f":"Dados[[#This Row],[Quantidade estimada]]*Dados[[#This Row],[Custo estimado por unidade]]","v":{"v":0,"d":"R$ 0.00"}},"Fornecido por local (geralmente)"]
[null,"Serviços Visuais/Áudio","Cabos de extensão",1,{"v":0,"d":"R$ 0.00"},{"$f":"Dados[[#This Row],[Quantidade estimada]]*Dados[[#This Row],[Custo estimado por unidade]]","v":{"v":0,"d":"R$ 0.00"}},"Fornecido por local (geralmente)"]
[null,"Serviços Visuais/Áudio","Microfone de lapela",1,{"v":0,"d":"R$ 0.00"},{"$f":"Dados[[#This Row],[Quantidade estimada]]*Dados[[#This Row],[Custo estimado por unidade]]","v":{"v":0,"d":"R$ 0.00"}},"Fornecido por local (geralmente)"]
[null,"Serviços Visuais/Áudio","Técnicos de audiovisuais e de outros serviços",1,{"v":300,"d":"R$ 300.00"},{"$f":"Dados[[#This Row],[Quantidade estimada]]*Dados[[#This Row],[Custo estimado por unidade]]","v":{"v":300,"d":"R$ 300.00"}}]
[null,"Serviços Visuais/Áudio","Impostos (8,8%)",null,{"v":31.415999999999997,"d":"R$ 31.42"},{"$f":"Dados[[#This Row],[Quantidade estimada]]*Dados[[#This Row],[Custo estimado por unidade]]","v":{"v":0,"d":"R$ 0.00"}}]
[null,"Custos adicionais","Convite \n(custos de postagem e impressão)",null,{"v":834,"d":"R$ 834.00"},{"$f":"Dados[[#This Row],[Quantidade estimada]]*Dados[[#This Row],[Custo estimado por unidade]]","v":{"v":0,"d":"R$ 0.00"}}]
[null,"Custos adicionais","Tempo e Despesas (TeD)",null,{"v":600,"d":"R$ 600.00"},{"$f":"Dados[[#This Row],[Quantidade estimada]]*Dados[[#This Row],[Custo estimado por unidade]]","v":{"v":0,"d":"R$ 0.00"}}]
[null,"Custos adicionais","TeD da equipe da empresa",null,{"v":200,"d":"R$ 200.00"},{"$f":"Dados[[#This Row],[Quantidade estimada]]*Dados[[#This Row],[Custo estimado por unidade]]","v":{"v":0,"d":"R$ 0.00"}},"<Número de pessoas no local>"]
[null,"Custos adicionais","Despesas de viagem do testemunho de cliente",null,{"v":100,"d":"R$ 100.00"},{"$f":"Dados[[#This Row],[Quantidade estimada]]*Dados[[#This Row],[Custo estimado por unidade]]","v":{"v":0,"d":"R$ 0.00"}}]
[null,"Brindes promocionais","Brinde promocional #1",25,{"v":10,"d":"R$ 10.00"},{"$f":"Dados[[#This Row],[Quantidade estimada]]*Dados[[#This Row],[Custo estimado por unidade]]","v":{"v":250,"d":"R$ 250.00"}},"<Descrição do brinde>"]
[null,"Brindes promocionais","Brinde promocional #2",25,{"v":5,"d":"R$ 5.00"},{"$f":"Dados[[#This Row],[Quantidade estimada]]*Dados[[#This Row],[Custo estimado por unidade]]","v":{"v":125,"d":"R$ 125.00"}},"<Descrição do brinde promocional>"]
[null,"Promoções","Brindes promocionais de produtos",50,{"v":8,"d":"R$ 8.00"},{"$f":"Dados[[#This Row],[Quantidade estimada]]*Dados[[#This Row],[Custo estimado por unidade]]","v":{"v":400,"d":"R$ 400.00"}}]
[null,"Promoções","Descontos de produtos",300,{"v":3,"d":"R$ 3.00"},{"$f":"Dados[[#This Row],[Quantidade estimada]]*Dados[[#This Row],[Custo estimado por unidade]]","v":{"v":900,"d":"R$ 900.00"}}]
[null,"Promoções","Ofertas especiais",200,{"v":2.5,"d":"R$ 2.50"},{"$f":"Dados[[#This Row],[Quantidade estimada]]*Dados[[#This Row],[Custo estimado por unidade]]","v":{"v":500,"d":"R$ 500.00"}}]
[null,"Publicidade","Folhetos (desenvolvimento e produção)",{"v":5000,"d":"5,000"},{"v":0.15,"d":"R$ 0.15"},{"$f":"Dados[[#This Row],[Quantidade estimada]]*Dados[[#This Row],[Custo estimado por unidade]]","v":{"v":750,"d":"R$ 750.00"}}]
[null,"Publicidade","Correspondências",{"v":15000,"d":"15,000"},{"v":0.04,"d":"R$ 0.04"},{"$f":"Dados[[#This Row],[Quantidade estimada]]*Dados[[#This Row],[Custo estimado por unidade]]","v":{"v":600,"d":"R$ 600.00"}}]
[null,"Publicidade","Cartões-postais",{"v":15000,"d":"15,000"},{"v":0.03,"d":"R$ 0.03"},{"$f":"Dados[[#This Row],[Quantidade estimada]]*Dados[[#This Row],[Custo estimado por unidade]]","v":{"v":450,"d":"R$ 450.00"}}]
[null,"Publicidade","Televisão",2,{"v":600,"d":"R$ 600.00"},{"$f":"Dados[[#This Row],[Quantidade estimada]]*Dados[[#This Row],[Custo estimado por unidade]]","v":{"v":1200,"d":"R$ 1,200.00"}}]
[null,"Publicidade","Rádio",4,{"v":300,"d":"R$ 300.00"},{"$f":"Dados[[#This Row],[Quantidade estimada]]*Dados[[#This Row],[Custo estimado por unidade]]","v":{"v":1200,"d":"R$ 1,200.00"}}]
[null,"Publicidade","Jornais",6,{"v":220,"d":"R$ 220.00"},{"$f":"Dados[[#This Row],[Quantidade estimada]]*Dados[[#This Row],[Custo estimado por unidade]]","v":{"v":1320,"d":"R$ 1,320.00"}}]
[null,"Publicidade","Outdoors",2,{"v":556,"d":"R$ 556.00"},{"$f":"Dados[[#This Row],[Quantidade estimada]]*Dados[[#This Row],[Custo estimado por unidade]]","v":{"v":1112,"d":"R$ 1,112.00"}}]
[null,"Publicidade","Anúncios em ônibus",3,{"v":125,"d":"R$ 125.00"},{"$f":"Dados[[#This Row],[Quantidade estimada]]*Dados[[#This Row],[Custo estimado por unidade]]","v":{"v":375,"d":"R$ 375.00"}}]
[null,"Relações públicas","Eventos de caridade",3,{"v":200,"d":"R$ 200.00"},{"$f":"Dados[[#This Row],[Quantidade estimada]]*Dados[[#This Row],[Custo estimado por unidade]]","v":{"v":600,"d":"R$ 600.00"}}]
[null,"Relações públicas","Publicidade",4,{"v":200,"d":"R$ 200.00"},{"$f":"Dados[[#This Row],[Quantidade estimada]]*Dados[[#This Row],[Custo estimado por unidade]]","v":{"v":800,"d":"R$ 800.00"}}]
[null,"Relações públicas","Promoções para funcionários",6,{"v":200,"d":"R$ 200.00"},{"$f":"Dados[[#This Row],[Quantidade estimada]]*Dados[[#This Row],[Custo estimado por unidade]]","v":{"v":1200,"d":"R$ 1,200.00"}}]
[null,"Relações públicas","Patrocínios",3,{"v":200,"d":"R$ 200.00"},{"$f":"Dados[[#This Row],[Quantidade estimada]]*Dados[[#This Row],[Custo estimado por unidade]]","v":{"v":600,"d":"R$ 600.00"}}]

{"sheet":"TABELA DE CATEGORIAS","index":2,"n_rows":8,"n_cols":13,"rows_kept":8,"merged":[[7,1,7,12]]}
["A tabela dinâmica e o gráfico de categoria estão nesta planilha. Instruções úteis sobre como usar esta planilha estão nas células desta coluna. Pressione Seta para baixo para começar."]
["O título desta pasta de trabalho está na célula à direita.","PLANO DE ORÇAMENTO DE MARKETING"]
[]
["Um sumário de tabela dinâmica mostrando categorias principais e seus subtotais inicia na célula C4. A próxima instrução está na célula A8.",null,"Categoria Principal"]
[null,null,"Brindes promocionais","Comunicações","Custos adicionais","Evento","Pesquisa","Promoções","Publicidade","Rede","Relações públicas","Serviços Visuais/Áudio","Total Geral"]
[null,"Subtotal estimado",{"v":0,"d":"R$ 0.00"},{"v":7007,"d":"R$ 7,007.00"},{"v":357,"d":"R$ 357.00"},{"v":25650,"d":"R$ 25,650.00"},{"v":2500,"d":"R$ 2,500.00"},{"v":375,"d":"R$ 375.00"},{"v":254,"d":"R$ 254.00"},{"v":1800,"d":"R$ 1,800.00"},{"v":3200,"d":"R$ 3,200.00"},{"v":7100,"d":"R$ 7,100.00"},{"v":48243,"d":"R$ 48,243.00"}]
[]
["O gráfico dinâmico da coluna mostrando as categorias principais e seus subtotais estimados está na célula à direita."," O gráfico dinâmico da coluna mostrando as categorias principais e seus subtotais estimados está nesta célula."]